bitfinex/quotes_SOLUSD_20220211
["timestamp","ask_amount","ask_price","bid_price","bid_amount"]
[1644549483237,34.84535907,104.99,104.91,14.551]
[1644549484138,49.14625907,104.99,104.91,14.551]
[1644549486641,49.14625907,104.99,104.91,0.25]
[1644549486941,49.14625907,104.99,104.9,14.5527]
[1644549489645,51.85186932,104.99,104.9,14.5527]
[1644549490446,49.14625907,104.99,104.9,14.5527]
[1644549490749,49.14625907,104.99,104.91,4.764]
[1644549490946,49.14625907,104.99,104.92,14.3001]
[1644549491147,1.3522092,104.98,104.92,14.3001]
[1644549491351,42.61042918,104.97,104.92,14.5501]
[1644549494150,42.61042918,104.97,104.92,14.3001]
[1644549495556,42.61042918,104.97,104.92,20.5501]
[1644549495756,42.61042918,104.97,104.92,14.5501]
[1644549496259,1.3522092,104.98,104.92,14.5501]
[1644549496959,1.3522092,104.98,104.93,4.764]
[1644549497167,1.3522092,104.98,104.93,19.0621]
[1644549497358,1.40197218,105.0,104.93,38.29523204]
[1644549497559,39.7637461,105.02,104.93,38.29523204]
[1644549497560,1.40197218,105.01,104.93,38.29523204]
[1644549497859,39.1418697,105.0,104.93,38.29523204]
[1644549498459,1.40197218,105.01,104.93,38.29523204]
[1644549498659,1.40197218,105.01,104.94,1.85313204]
[1644549498861,1.3522092,105.02,104.96,14.2928]
[1644549499058,1.3522092,105.02,104.96,25.4228]
[1644549499260,1.40197218,105.03,104.97,4.761]
[1644549499459,4.04827596,105.08,104.97,15.891]
[1644549499460,45.34393461,105.04,104.97,15.891]
[1644549499658,45.34393461,105.04,104.98,1.85313204]
[1644549499659,45.29417163,105.04,104.98,1.85313204]
[1644549499861,45.29417163,105.04,104.98,2.10313204]
[1644549500662,1.40197218,105.05,104.98,6.86413204]
[1644549500863,1.3522092,105.05,104.98,21.15393204]
[1644549501162,1.3522092,105.05,104.98,27.15393204]
[1644549501367,1.3522092,105.05,104.98,25.3008]
[1644549501561,1.3522092,105.06,104.98,25.3008]
[1644549501761,45.92881826,105.05,104.98,67.9931]
[1644549502164,47.28102746,105.05,104.98,67.9931]
[1644549502463,47.28102746,105.05,104.98,14.2898]
[1644549502661,1.3522092,105.04,104.98,14.2898]
[1644549502862,1.3522092,105.04,104.97,14.2947]
[1644549502863,46.34119034,105.03,104.97,14.2947]
[1644549504662,1.3522092,105.03,104.97,14.2947]
[1644549504862,15.6469092,105.04,104.97,14.2947]
[1644549505664,1.3522092,105.03,104.97,14.2947]
[1644549506063,36.15540692,105.04,104.97,14.5447]
[1644549506467,36.15540692,105.04,104.97,19.3057]
[1644549506667,36.15540692,105.04,104.97,19.0557]
[1644549507467,36.15540692,105.04,104.97,14.2947]
[1644549507668,1.3522092,105.03,104.97,14.2947]
[1644549507869,43.53022514,105.02,104.97,14.2947]
[1644549508471,43.53022514,105.02,104.96,14.2957]
[1644549508674,43.57998812,105.02,104.96,14.2957]
[1644549508871,44.88243434,105.02,104.96,14.5457]
[1644549509289,43.53022514,105.02,104.96,14.5457]
[1644549510290,44.88243434,105.02,104.96,14.5457]
[1644549513194,1.3522092,105.01,104.96,14.5457]
[1644549513592,35.38949245,105.0,104.96,14.5457]
[1644549513794,35.38949245,105.0,104.95,14.2968]
[1644549514093,36.74170165,105.0,104.94,47.497]
[1644549514296,35.38949245,105.0,104.94,53.497]
[1644549515294,1.3522092,105.01,104.95,4.763]
[1644549515494,1.3522092,105.02,104.96,14.295]
[1644549515894,1.3522092,105.02,104.96,14.545]
[1644549516495,1.3522092,105.01,104.96,14.545]
[1644549516898,1.3522092,105.02,104.96,14.545]
[1644549517098,1.3522092,105.02,104.97,4.761]
[1644549517297,1.3522092,105.02,104.98,14.2928]
[1644549517497,1.3522092,105.03,104.98,14.2928]
[1644549517697,1.3522092,105.03,104.98,14.5428]
[1644549518798,41.21791896,105.02,104.98,14.5428]
[1644549519698,1.3522092,105.02,104.98,14.5428]
[1644549521497,1.3522092,105.03,104.98,14.5428]
[1644549521900,1.3522092,105.02,104.98,14.5428]
[1644549522200,37.50310979,105.02,104.98,14.5428]
[1644549524904,37.50310979,105.02,104.97,14.2941]
[1644549525104,40.16321152,105.0,104.94,4.761]
[1644549525306,41.51542072,105.0,104.94,4.761]
[1644549525506,1.3522092,104.99,104.94,4.761]
[1644549525805,45.1260851,104.98,104.94,4.761]
[1644549526005,45.1260851,104.98,104.92,4.763]
[1644549526805,45.1260851,104.98,104.95,14.2969]
[1644549527005,0.3,104.97,104.95,14.2969]
[1644549527208,0.3,104.97,104.95,14.5469]
[1644549527607,0.3,104.97,104.95,14.2969]
[1644549529710,0.3,104.97,104.91,82.2294]
[1644549529908,1.6522092,104.97,104.91,48.1209]
[1644549530108,45.86343451,104.96,104.91,48.1209]
[1644549530811,45.86343451,104.96,104.91,52.8849]
[1644549531010,45.86343451,104.96,104.92,14.3009]
[1644549531411,45.86343451,104.96,104.92,14.5509]
[1644549533311,45.86343451,104.96,104.89,1.85912505]
[1644549533511,45.86343451,104.96,104.88,52.4379]
[1644549533712,47.21564371,104.96,104.88,53.6739]
[1644549534012,45.86343451,104.96,104.89,4.765]
[1644549534212,47.21564371,104.96,104.89,4.765]
[1644549534412,47.21564371,104.96,104.9,14.3035]
[1644549534714,47.21564371,104.96,104.89,4.765]
[1644549535012,47.21564371,104.96,104.87,47.8972]
[1644549535312,37.55020741,104.94,104.86,116.665]
[1644549535513,37.55020741,104.94,104.86,111.9]
[1644549535912,51.85770741,104.94,104.86,126.2086]
[1644549536111,37.55020741,104.94,104.87,4.766]
[1644549536311,37.55020741,104.94,104.87,11.016]
[1644549537715,37.55020741,104.94,104.89,14.3061]
[1644549538317,37.55020741,104.94,104.87,0.25]
[1644549538515,37.55020741,104.94,104.86,183.2653]
[1644549538716,37.55020741,104.94,104.86,135.5784]
[1644549539217,51.85800741,104.94,104.87,14.3088]
[1644549539618,51.85800741,104.94,104.87,14.5588]
[1644549551746,51.85800741,104.94,104.85,4.766]
[1644549551948,11.13,104.93,104.83,22.9817]
[1644549552148,14.3134,104.9,104.83,22.9817]
[1644549552348,37.8342391,104.89,104.83,22.9817]
[1644549552948,37.8342391,104.89,104.84,4.768]
[1644549553451,37.8342391,104.89,104.84,14.3118]
[1644549555853,52.1487391,104.89,104.83,27.7497]
[1644549556056,52.1487391,104.89,104.83,4.768]
[1644549557056,52.1487391,104.89,104.81,28.7959]
[1644549557255,14.3127,104.9,104.81,35.0459]
[1644549557455,1.3522092,104.92,104.82,1.85912505]
[1644549557655,36.7805092,104.93,104.83,4.767]
[1644549557855,35.4283,104.93,104.83,11.017]
[1644549558057,35.4283,104.93,104.84,1.85912505]
[1644549558255,53.13185475,104.93,104.86,14.3096]
[1644549558460,38.82335475,104.93,104.86,14.3096]
[1644549558658,38.82335475,104.93,104.87,1.85912505]
[1644549558854,38.82335475,104.93,104.86,0.25]
[1644549559055,38.82335475,104.93,104.87,4.766]
[1644549559255,38.82335475,104.93,104.87,5.016]
[1644549559656,38.82335475,104.93,104.87,0.25]
[1644549559856,38.82335475,104.93,104.88,14.3076]
[1644549560056,1.3522092,104.95,104.88,19.0736]
[1644549560257,47.3597092,104.96,104.88,25.3236]
[1644549560556,47.3597092,104.96,104.88,20.5576]
[1644549561162,38.77061135,104.95,104.88,20.5576]
[1644549561756,53.07681135,104.95,104.88,20.5576]
[1644549561957,53.07681135,104.95,104.88,25.3226]
[1644549562761,14.3062,104.95,104.88,25.3226]
[1644549562961,1.3522092,104.96,104.88,25.3226]
[1644549563161,1.3522092,104.98,104.88,51.12318341]
[1644549563762,42.77112429,104.97,104.88,51.12318341]
[1644549563962,42.77112429,104.97,104.88,49.2642]
[1644549565061,57.07442429,104.97,104.88,49.2642]
[1644549565265,58.42663349,104.97,104.88,49.2642]
[1644549565662,15.6555092,104.97,104.88,49.2642]
[1644549565864,1.3522092,104.98,104.88,51.12318341]
[1644549566063,1.3522092,104.98,104.88,67.53715597]
[1644549566365,1.3522092,104.99,104.91,14.2981]
[1644549566563,1.40197218,105.0,104.92,4.763]
[1644549566762,48.8185268,104.99,104.92,11.013]
[1644549567662,48.8185268,104.99,104.94,14.2978]
[1644549568064,48.8185268,104.99,104.91,24.251]
[1644549568264,50.170736,104.99,104.91,30.251]
[1644549568565,35.44015601,104.97,104.91,44.5543]
[1644549569368,35.44015601,104.97,104.91,44.8043]
[1644549570972,49.74365601,104.97,104.91,38.8043]
[1644549571171,49.74365601,104.97,104.91,24.501]
[1644549573371,14.3035,104.97,104.91,24.501]
[1644549573572,12.53197218,105.0,104.92,1.85898341]
[1644549573773,1.40197218,105.0,104.92,8.10898341]
[1644549574173,0.04976298,105.0,104.92,8.10898341]
[1644549574373,46.57118833,105.0,104.92,8.10898341]
[1644549574673,60.92085131,105.0,104.93,14.2997]
[1644549574873,60.87108833,105.0,104.93,14.5497]
[1644549578777,46.57118833,105.0,104.93,20.5497]
[1644549579179,46.57118833,105.0,104.93,16.40868341]
[1644549579386,46.57118833,105.0,104.93,1.85898341]
[1644549579679,11.13,104.99,104.91,24.251]
[1644549579978,56.49745564,104.98,104.91,24.251]
[1644549580779,14.3032,104.98,104.91,38.8042]
[1644549580983,0.04976298,105.0,104.92,1.85898341]
[1644549581279,12.4822092,105.01,104.93,4.763]
[1644549581280,0.04976298,105.01,104.93,4.763]
[1644549581479,1.3522092,105.03,104.94,23.8732]
[1644549581480,0.04976298,105.0,104.94,23.8732]
[1644549581680,0.04976298,105.01,104.94,25.73218341]
[1644549581881,38.06591944,105.02,104.95,1.85898341]
[1644549582080,52.41248242,105.02,104.95,1.85898341]
[1644549582281,52.36271944,105.02,104.95,8.10898341]
[1644549583981,52.36271944,105.02,104.95,22.40568341]
[1644549586505,52.36271944,105.02,104.95,27.16668341]
[1644549588304,0.04976298,105.03,104.96,1.85898341]
[1644549588504,0.04976298,105.04,104.98,14.2912]
[1644549588705,1.3522092,105.06,104.98,14.2912]
[1644549588906,0.04976298,105.05,104.99,28.5596]
[1644549589105,43.63753996,105.06,104.99,28.5596]
[1644549589307,43.58777698,105.06,104.99,30.0496]
[1644549589705,43.58777698,105.06,105.0,14.289]
[1644549589905,43.58777698,105.06,105.0,14.539]
[1644549590305,43.58777698,105.06,105.0,20.539]
[1644549590612,1.3522092,105.06,105.0,20.539]
[1644549590806,1.3522092,105.07,105.0,14.539]
[1644549591606,43.91065636,105.06,105.0,14.539]
[1644549593809,43.91065636,105.06,105.0,14.289]
[1644549594011,45.26286556,105.06,104.96,46.4386]
[1644549594211,45.31262854,105.06,104.97,6.25]
[1644549594410,1.40197218,105.05,104.97,0.25]
[1644549594613,38.04188166,105.04,104.97,0.25]
[1644549594811,51.83618166,105.04,104.96,46.4386]
[1644549595013,62.96618166,105.04,104.96,46.4386]
[1644549595210,64.31839086,105.04,104.96,46.4386]
[1644549595411,1.3522092,105.03,104.95,14.2975]
[1644549595611,41.38860987,105.02,104.95,20.2975]
[1644549596214,55.68540987,105.02,104.95,20.5475]
[1644549597013,55.68540987,105.02,104.95,25.3085]
[1644549598315,55.68540987,105.02,104.95,20.5475]
[1644549599520,1.40197218,105.03,104.95,20.5475]
[1644549599521,1.40197218,105.03,104.95,27.16748341]
[1644549599718,0.04976298,105.03,104.95,27.16748341]
[1644549599916,1.3522092,105.05,104.96,22.9461]
[1644549600216,0.04976298,105.03,104.98,14.2911]
[1644549600418,0.04976298,105.05,104.98,14.2911]
[1644549600618,41.09180838,105.04,104.98,14.2911]
[1644549601320,41.09180838,105.04,104.98,14.5411]
[1644549601518,41.09180838,105.04,104.98,14.2911]
[1644549603420,42.44401758,105.04,104.98,14.5411]
[1644549603620,41.09180838,105.04,104.98,14.2911]
[1644549603820,55.38580838,105.04,104.98,14.2911]
[1644549604019,56.73801758,105.04,104.97,37.7137]
[1644549605623,1.3522092,105.03,104.97,37.7137]
[1644549605822,46.64253242,105.02,104.97,37.9637]
[1644549608324,1.3522092,105.04,104.97,45.82268341]
[1644549608527,0.04977267,105.05,104.97,45.82268341]
[1644549608724,1.40198187,105.06,104.98,24.0204]
[1644549608927,0.04977267,105.05,105.0,14.291]
[1644549609125,1.3522092,105.05,105.0,14.291]
[1644549609328,44.15885578,105.04,105.0,14.291]
[1644549609928,1.3522092,105.05,105.0,14.291]
[1644549610128,1.3522092,105.06,105.01,1.85898341]
[1644549610458,1.3522092,105.07,105.01,16.14878341]
[1644549610928,41.9026747,105.06,105.01,16.14878341]
[1644549611527,43.2548839,105.06,105.01,16.14878341]
[1644549611727,41.9026747,105.06,105.01,16.14878341]
[1644549612628,15.6419092,105.07,105.01,16.14878341]
[1644549612830,1.3522092,105.06,105.01,16.39878341]
[1644549613030,1.3522092,105.07,105.02,1.85898341]
[1644549613231,1.40198187,105.08,105.03,14.2854]
[1644549613435,1.3522092,105.08,105.03,14.2854]
[1644549613633,49.9039704,105.08,105.03,14.5354]
[1644549614835,1.3522092,105.08,105.03,14.5354]
[1644549615236,1.3522092,105.09,105.03,20.5354]
[1644549615434,1.3522092,105.1,105.04,22.6248]
[1644549615633,1.3522092,105.1,105.05,14.2829]
[1644549615832,1.3522092,105.1,105.05,14.5329]
[1644549616532,1.40198187,105.11,105.05,14.5329]
[1644549616733,1.3522092,105.11,105.05,14.5329]
[1644549617432,59.63397749,105.12,105.05,14.5329]
[1644549618234,59.63397749,105.12,105.05,20.5329]
[1644549618534,1.3522092,105.11,105.05,14.2829]
[1644549618734,1.3522092,105.11,105.05,14.5329]
[1644549618935,1.3522092,105.12,105.05,14.5329]
[1644549619136,1.3522092,105.12,105.06,4.758]
[1644549619336,1.40198187,105.13,105.08,14.2786]
[1644549619537,1.3522092,105.13,105.08,14.2786]
[1644549619736,1.3522092,105.14,105.08,14.5286]
[1644549619937,0.04977267,105.14,105.09,4.756]
[1644549620140,1.40198187,105.15,105.08,0.25]
[1644549620437,1.3522092,105.15,105.08,0.25]
[1644549620641,44.89926995,105.14,105.1,14.2739]
[1644549620839,1.3522092,105.16,105.1,14.5239]
[1644549621040,1.40198187,105.16,105.1,14.5239]
[1644549621240,1.3522092,105.16,105.1,14.5239]
[1644549621444,1.3522092,105.16,105.1,14.2739]
[1644549621641,1.3522092,105.16,105.09,38.6912]
[1644549621940,36.70882847,105.15,105.09,38.6912]
[1644549622339,36.70882847,105.15,105.09,24.4138]
[1644549622941,36.70882847,105.15,105.07,4.756]
[1644549623139,38.06103767,105.15,105.07,4.756]
[1644549623340,38.06103767,105.15,105.07,5.006]
[1644549623640,51.84073767,105.15,105.07,5.006]
[1644549623839,51.84073767,105.15,105.07,4.756]
[1644549624441,51.84073767,105.15,105.06,24.0014]
[1644549624642,51.84073767,105.15,105.06,30.0014]
[1644549624939,51.84073767,105.15,105.06,38.5328]
[1644549626542,51.84073767,105.15,105.07,4.757]
[1644549626841,50.48852847,105.15,105.07,5.007]
[1644549627041,51.84073767,105.15,105.07,23.064]
[1644549627843,50.48852847,105.15,105.07,23.064]
[1644549628243,50.48852847,105.15,105.07,27.82]
[1644549628942,51.84073767,105.15,105.07,23.064]
[1644549629143,36.20882847,105.15,105.07,42.0995]
[1644549629942,36.20882847,105.15,105.07,37.3435]
[1644549632967,36.20882847,105.15,105.07,43.3435]
[1644549633845,36.20882847,105.15,105.07,37.3435]
[1644549634047,36.20882847,105.15,105.07,23.064]
[1644549634251,37.56103767,105.15,105.07,23.064]
[1644549634944,51.84073767,105.15,105.07,23.064]
[1644549635145,51.84073767,105.15,105.07,43.344]
[1644549635745,51.84073767,105.15,105.07,37.344]
[1644549636548,1.3522092,105.14,105.07,42.1]
[1644549636747,0.04977267,105.14,105.07,48.1]
[1644549636949,0.04977267,105.15,105.07,48.1]
[1644549637145,0.04977267,105.14,105.07,48.1]
[1644549637945,49.79416262,105.16,105.07,48.1]
[1644549638148,0.04977267,105.14,105.07,48.1]
[1644549638747,49.79416262,105.16,105.07,48.1]
[1644549638949,48.44195342,105.16,105.07,48.1]
[1644549639349,49.79416262,105.16,105.07,48.1]
[1644549639550,48.44195342,105.16,105.07,48.1]
[1644549639950,48.44195342,105.16,105.07,59.23]
[1644549640150,0.04977267,105.16,105.07,155.27]
[1644549640351,0.04977267,105.16,105.11,0.45]
[1644549640577,1.40198187,105.19,105.14,14.2668]
[1644549640777,1.3522092,105.2,105.11,11.13]
[1644549640974,1.3522092,105.2,105.09,24.3595]
[1644549641176,1.3522092,105.17,105.09,24.3595]
[1644549641375,1.40198187,105.17,105.09,35.1145]
[1644549641576,0.04977267,105.17,105.09,35.1145]
[1644549641776,1.3522092,105.18,105.09,35.1145]
[1644549641975,1.40198187,105.18,105.12,14.2729]
[1644549642274,48.57982409,105.18,105.12,14.2729]
[1644549642677,1.3522092,105.17,105.12,14.2729]
[1644549642877,43.29140769,105.16,105.11,22.8679]
[1644549643079,43.29140769,105.16,105.11,37.3925]
[1644549643678,43.29140769,105.16,105.1,23.9004]
[1644549643881,44.64361689,105.16,105.1,23.9004]
[1644549644079,44.64361689,105.16,105.08,14.2789]
[1644549644277,1.3522092,105.15,105.08,14.2789]
[1644549644477,36.76126366,105.14,105.08,14.2789]
[1644549645279,36.76126366,105.14,105.07,14.2801]
[1644549645480,38.16324553,105.14,105.05,54.5604]
[1644549645680,38.16324553,105.14,105.05,59.3174]
[1644549645982,49.42624553,105.14,105.05,59.3174]
[1644549646380,47.07711412,105.12,105.06,14.2813]
[1644549646780,47.07711412,105.12,105.06,20.5313]
[1644549647979,0.04977267,105.13,105.06,20.5313]
[1644549648186,1.40198187,105.14,105.06,20.5313]
[1644549648386,1.40198187,105.14,105.09,14.2773]
[1644549648590,47.5923,105.19,105.09,14.2773]
[1644549648591,1.3522092,105.15,105.09,14.2773]
[1644549648787,55.0,105.14,105.04,15.43095293]
[1644549648989,45.87548352,105.13,105.02,24.37085293]
[1644549649186,45.87548352,105.13,105.01,4.756]
[1644549649187,43.23599813,105.11,105.01,4.756]
[1644549649387,0.04977267,105.1,104.99,6.10765293]
[1644549649587,1.40198187,105.1,104.98,6.10765293]
[1644549649787,40.37027693,105.09,104.98,6.10765293]
[1644549649988,0.04977267,105.08,104.97,1.34865293]
[1644549650287,41.34981152,105.07,104.97,7.34865293]
[1644549650490,46.10581152,105.07,104.97,7.34865293]
[1644549651089,46.10581152,105.07,104.98,15.63795293]
[1644549651288,41.34981152,105.07,104.99,4.76]
[1644549651490,41.34981152,105.07,104.98,6.25]
[1644549651689,41.34981152,105.07,104.98,11.01]
[1644549651887,64.47721152,105.07,104.98,5.01]
[1644549652492,64.47721152,105.07,104.98,11.01]
[1644549652692,64.47721152,105.07,104.99,14.2885]
[1644549652892,64.47721152,105.07,104.99,14.5385]
[1644549654396,41.34981152,105.07,104.99,14.5385]
[1644549656196,55.64071152,105.07,104.99,14.5385]
[1644549656394,55.64071152,105.07,104.99,0.25]
[1644549656595,55.64071152,105.07,104.98,35.5718]
[1644549656795,66.04681152,105.07,104.98,35.5718]
[1644549657697,66.04681152,105.07,104.98,49.8634]
[1644549657896,66.04681152,105.07,104.98,45.1034]
[1644549658096,66.04681152,105.07,104.98,44.8534]
[1644549658297,68.44210509,105.07,104.98,44.8534]
[1644549658500,66.04681152,105.07,104.98,44.8534]
[1644549659001,35.4266615,105.05,104.98,44.8534]
[1644549659402,35.4266615,105.05,104.98,45.1034]
[1644549661405,4.759,105.04,104.97,23.389]
[1644549661605,39.52509193,105.03,104.94,23.4968]
[1644549661903,39.52509193,105.03,104.94,48.0893]
[1644549662705,39.52509193,105.03,104.94,68.3853]
[1644549663708,39.52509193,105.03,104.94,68.6353]
[1644549665207,53.82139193,105.03,104.94,68.6353]
[1644549670437,4.757,105.02,104.94,68.6353]
[1644549670642,36.60899006,105.01,104.92,0.024]
[1644549670940,41.82968517,104.99,104.92,0.024]
[1644549671138,41.82968517,104.99,104.91,0.024]
[1644549671739,41.82968517,104.99,104.88,0.024]
[1644549671941,46.08859417,104.97,104.88,14.3284]
[1644549672139,46.08859417,104.97,104.89,0.024]
[1644549672639,57.21859417,104.97,104.89,0.024]
[1644549673240,14.3054,104.96,104.89,0.024]
[1644549673440,43.51626699,104.95,104.88,0.024]
[1644549673840,54.64626699,104.95,104.88,0.024]
[1644549674441,14.3081,104.94,104.86,0.024]
[1644549674643,42.07161845,104.93,104.86,0.024]
[1644549674840,42.07161845,104.93,104.84,0.024]
[1644549675441,42.07161845,104.93,104.84,95.614]
[1644549675642,42.07161845,104.93,104.85,19.1009]
[1644549675841,42.07161845,104.93,104.85,25.3509]
[1644549676446,24.4029,104.96,104.85,25.3509]
[1644549676646,24.4029,104.96,104.86,22.614]
[1644549676847,38.7083,104.96,104.89,14.3045]
[1644549677048,38.7083,104.96,104.89,14.3285]
[1644549677247,38.7083,104.96,104.89,14.5785]
[1644549677449,42.77651642,104.95,104.89,14.5785]
[1644549677644,42.77651642,104.95,104.89,14.5545]
[1644549678947,42.77651642,104.95,104.89,0.25]
[1644549679348,42.77651642,104.95,104.88,37.2149]
[1644549680646,42.77651642,104.95,104.89,4.765]
[1644549680845,42.77651642,104.95,104.89,19.319]
[1644549681047,36.0846,104.98,104.89,25.319]
[1644549681350,29.7006,104.98,104.9,0.024]
[1644549681546,24.9546,104.98,104.9,4.788]
[1644549681746,24.9546,104.98,104.9,11.038]
[1644549682150,39.72591782,104.97,104.9,10.788]
[1644549682347,39.72591782,104.97,104.91,14.3019]
[1644549683350,39.72591782,104.97,104.91,14.5519]
[1644549691758,39.72591782,104.97,104.91,20.5519]
[1644549700888,39.72591782,104.97,104.91,21.90055293]
[1644549701589,39.72591782,104.97,104.91,26.66455293]
[1644549702993,39.72591782,104.97,104.91,25.3159]
[1644549703691,39.72591782,104.97,104.91,26.66455293]
[1644549704092,39.72591782,104.97,104.91,25.3159]
[1644549704494,39.72591782,104.97,104.91,26.66455293]
[1644549704692,39.72591782,104.97,104.91,25.3159]
[1644549704893,39.72591782,104.97,104.91,26.66455293]
[1644549705291,39.72591782,104.97,104.91,15.65055293]
[1644549705494,39.72591782,104.97,104.91,1.34865293]
[1644549705693,39.72591782,104.97,104.9,23.1311]
[1644549705892,4.753,104.96,104.9,23.1311]
[1644549706093,42.58719863,104.95,104.9,23.1071]
[1644549706692,42.58719863,104.95,104.9,23.3571]
[1644549709997,42.58719863,104.95,104.9,0.25]
[1644549710297,42.58719863,104.95,104.89,21.92625293]
[1644549710496,42.58719863,104.95,104.89,21.90225293]
[1644549710700,42.58719863,104.95,104.89,21.65225293]
[1644549710896,42.58719863,104.95,104.88,43.45355293]
[1644549710897,56.89269863,104.95,104.88,43.45355293]
[1644549711098,61.65069863,104.95,104.88,0.024]
[1644549711700,63.00290783,104.95,104.88,0.024]
[1644549712101,61.65069863,104.95,104.88,0.024]
[1644549712300,61.65069863,104.95,104.85,1.34865293]
[1644549712301,14.3108,104.92,104.85,15.68275293]
[1644549712504,37.70269667,104.91,104.86,0.024]
[1644549712702,37.70269667,104.91,104.85,14.3101]
[1644549712901,37.70269667,104.91,104.84,15.43105293]
[1644549713101,37.70269667,104.91,104.84,1.37265293]
[1644549713304,37.70269667,104.91,104.84,0.024]
[1644549713605,37.70269667,104.91,104.83,1.37265293]
[1644549713801,4.757,104.9,104.83,1.37265293]
[1644549714003,51.56473748,104.89,104.83,15.68565293]
[1644549714204,51.56473748,104.89,104.83,14.337]
[1644549714802,51.56473748,104.89,104.83,0.024]
[1644549715004,51.56473748,104.89,104.82,19.0792]
[1644549715404,51.56473748,104.89,104.82,4.765]
[1644549715607,56.32073748,104.89,104.82,4.765]
[1644549716807,56.32073748,104.89,104.81,14.3398]
[1644549717006,51.56473748,104.89,104.81,14.3398]
[1644549717910,4.76,104.88,104.81,0.024]
[1644549718107,4.76,104.88,104.8,38.7206]
[1644549718108,58.9776011,104.87,104.8,38.7206]
[1644549718310,58.9776011,104.87,104.8,38.9706]
[1644549721017,58.9776011,104.87,104.8,44.9706]
[1644549721217,44.6599011,104.87,104.8,44.9706]
[1644549721614,44.6599011,104.87,104.81,19.0841]
[1644549721821,44.6599011,104.87,104.81,19.3341]
[1644549722814,44.6599011,104.87,104.81,14.5651]
[1644549724317,44.6599011,104.87,104.81,14.0651]
[1644549724517,44.6599011,104.87,104.81,13.8151]
[1644549725118,49.4179011,104.87,104.81,13.8151]
[1644549725719,49.4179011,104.87,104.81,14.0651]
[1644549726120,44.6599011,104.87,104.81,14.0651]
[1644549726322,58.9770011,104.87,104.81,13.8151]
[1644549727838,58.9770011,104.87,104.8,38.7211]
[1644549728038,63.7360011,104.87,104.8,0.024]
[1644549728240,63.7360011,104.87,104.78,0.024]
[1644549728442,60.16025705,104.85,104.78,0.024]
[1644549728641,60.16025705,104.85,104.77,35.064]
[1644549729338,60.16025705,104.85,104.77,60.0253]
[1644549729539,60.16025705,104.85,104.78,14.3194]
[1644549729739,60.16025705,104.85,104.78,20.5934]
[1644549732041,64.91825705,104.85,104.78,20.5934]
[1644549734347,64.91825705,104.85,104.78,14.5934]
[1644549734547,64.91825705,104.85,104.78,20.5934]
[1644549735247,64.91825705,104.85,104.78,14.5934]
[1644549735651,64.91825705,104.85,104.78,20.5934]
[1644549736549,60.16025705,104.85,104.78,20.5934]
[1644549736747,60.16025705,104.85,104.78,14.3434]
[1644549736950,60.16025705,104.85,104.78,0.024]
[1644549737150,60.16025705,104.85,104.77,0.024]
[1644549737352,4.758,104.84,104.77,0.024]
[1644549737550,14.3242,104.82,104.77,0.024]
[1644549737751,40.86138538,104.81,104.75,0.024]
[1644549737952,40.86138538,104.81,104.76,14.3237]
[1644549738153,40.86138538,104.81,104.75,0.024]
[1644549739352,55.18618538,104.81,104.75,14.3488]
[1644549740453,59.94418538,104.81,104.75,14.3488]
[1644549741053,55.18618538,104.81,104.75,0.024]
[1644549741258,59.94318538,104.81,104.74,14.3264]
[1644549741455,59.94318538,104.81,104.74,14.3504]
[1644549741854,59.94318538,104.81,104.74,20.3504]
[1644549742256,38.0824,104.82,104.74,25.3724]
[1644549742456,23.7587,104.82,104.74,35.4414]
[1644549742655,23.0517,104.85,104.74,64.0194907]
[1644549742855,23.0517,104.85,104.78,14.3175]
[1644549743155,28.5485,104.89,104.79,4.769]
[1644549743357,28.5485,104.89,104.79,0.274]
[1644549743358,40.03372622,104.88,104.79,0.274]
[1644549743555,39.97912563,104.86,104.79,0.274]
[1644549743758,54.29782563,104.86,104.79,0.274]
[1644549743959,39.97912563,104.86,104.79,0.274]
[1644549744156,39.97912563,104.86,104.81,14.3174]
[1644549744358,39.97912563,104.86,104.81,14.5674]
[1644549747961,39.97912563,104.86,104.81,14.3174]
[1644549749061,44.73712563,104.86,104.81,14.3174]
[1644549749262,59.05522563,104.86,104.81,14.3174]